Cogmind - Beta 14 @@@ ROGUE MODE // 2024.08.17 @ 20:53:50 Player: Gabri Result: Destroyed by G-50 Soldier with Heavy Laser Performance ------------- Evolutions (1) 500 Regions Visited (6) 1200 Robots Destroyed (33) 165 Value Destroyed (807) 807 Prototype IDs (1) 20 Alien Tech Used (0) 0 Bonus (328) 328 TOTAL SCORE: 3020 Bonus ------- Follower Combat Kills 60 Met Imprinter 300 Friendly Fire -32 Cogmind --------- Core Integrity 0/400 Matter 290/300 Energy 85/100 System Corruption 0% Temperature Cool (9) Movement Core (300) Ox5 Location -6/Proximity Caves Parts ------- > --- POWER (1) -------- (None) > --- PROPULSION (3) --- (None) > --- UTILITY (3) ------ Medium Storage Unit > --- WEAPON (2) ------- Ripper Phasing Sabre > --- INVENTORY (10) --- Improved Aluminum Leg Carbon-fiber Leg Medium Storage Unit Phasing Sabre Peak State ------------ > --- POWER ------------ Light Deuterium Engine > --- PROPULSION ------- Light Treads Advanced Treads Advanced Treads > --- UTILITY ---------- Medium Storage Unit Seismic Detector Hacking Drone Bay > --- WEAPON ----------- Heavy Battle Rifle Slug Cannon > --- INVENTORY -------- Light Nuclear Core Improved Aluminum Leg Carbon-fiber Leg Armored Wheel Gravmag System Flak Cannon Ripper Phasing Sabre Phasing Sabre [Rating: 32] Favorites ----------- Power Light Deuterium Engine Engine Light Deuterium Engine Power Core Light Nuclear Core Propulsion Advanced Treads Treads Advanced Treads Leg Aluminum Leg Wheel Armored Wheel Hover Unit Gravmag System Utility Seismic Detector Device Seismic Detector Storage Medium Storage Unit Processor Targeting Computer Protection Improved Weapon Shielding Weapon Flak Cannon Energy Gun EM Pulse Gun Energy Cannon Particle Cannon Ballistic Gun Heavy Battle Rifle Ballistic Cannon Flak Cannon Launcher Grenade Launcher Slashing Weapon Ripper Build | -11 -10 -10 -9 -9 -7 -6 ------- Run | Yrd Mat Min Mat Min Zio Pro Slots Evolved 2 | . . . 2 . . . Power . | . . . . . . . Propulsion 1 | . . . 1 . . . Utility 1 | . . . 1 . . . Weapon . | . . . . . . . Parts Attached 43 | 8 2 1 14 7 5 6 Power 4 | 1 . . 1 1 . 1 Engine 3 | 1 . . 1 1 . . Core 1 | . . . . . . 1 Reactor . | . . . . . . . Propulsion 11 | 3 . . 4 2 . 2 Treads 7 | 2 . . 3 2 . . Leg 1 | . . . 1 . . . Wheel 2 | 1 . . . . . 1 Hover 1 | . . . . . . 1 Flight . | . . . . . . . Utility 11 | 2 . 1 6 . 2 . Device 4 | 1 . . 1 . 2 . Storage 5 | 1 . 1 3 . . . Processor 1 | . . . 1 . . . Hackware . | . . . . . . . Protection 1 | . . . 1 . . . Artifact . | . . . . . . . Weapon 17 | 2 2 . 3 4 3 3 Energy Gun 4 | 1 1 . . . 1 1 Energy Cannon 1 | . . . 1 . . . Ballistic Gun 2 | 1 . . . . 1 . Ballistic Cannon 5 | . . . 2 2 1 . Launcher 3 | . 1 . . 2 . . Special Weapon . | . . . . . . . Impact Weapon . | . . . . . . . Slashing Weapon 2 | . . . . . . 2 Piercing Weapon . | . . . . . . . Special Melee Weapon . | . . . . . . . Unidentified Prototypes 1 | . . . . . 1 . Parts Lost 18 | . . . . 7 . 11 Power 3 | . . . . 1 . 2 Propulsion 7 | . . . . 2 . 5 Utility 3 | . . . . 1 . 2 Weapon 5 | . . . . 3 . 2 Highest Loss Streak 8 | . . . . 7 . 8 To Critical Strikes . | . . . . . . . Average Slot Usage (%) 96 | . 100 100 99 90 98 86 Engine 10 | . 14 14 11 11 11 3 Treads 31 | . 28 28 32 32 33 22 Device 16 | . 14 14 12 14 20 18 Storage 11 | . 14 14 11 11 11 11 Processor 1 | . . . 4 . . . Protection 1 | . . . 4 . . . Energy Gun 2 | . 13 14 . . . 1 Energy Cannon 2 | . . . 8 2 . . Ballistic Gun 6 | . 14 14 . . 9 5 Ballistic Cannon 10 | . . . 12 18 12 9 Peak Build Rating 32 | 7 7 7 23 24 32 32 Average Rating 22 | 5 7 7 20 19 29 27 On Entrance 13 | . 7 7 7 23 19 32 Naked Turns . | . . . . . . . Heaviest Build 35 | 14 15 19 30 28 35 28 Greatest Support 66 | 40 40 40 66 66 64 64 Greatest Overweight (x) 5 | . . . . . . 5 Average Overweight (x) . | . . . . . . . Largest Inventory Capacity 25 | 8 8 10 25 10 10 10 Average Capacity 9 | 7 8 9 10 10 10 10 Most Carried 10 | 4 5 7 10 10 10 10 Average Carried 8 | 2 4 6 9 6 9 8 Final Capacity 10 | 8 8 10 10 10 10 10 Final Carried 10 | 4 5 7 10 7 10 4 Class Distribution -------------------- 100% | Mutant Dominant Class ---------------- Mutant | -10/Materials Mutant | -10/Mines Mutant | -9/Materials Mutant | -9/Mines Mutant | -7/Zion Mutant | -6/Proximity Caves Resources | -11 -10 -10 -9 -9 -7 -6 ----------- Run | Yrd Mat Min Mat Min Zio Pro Matter Collected 1024 | 296 35 . 201 298 101 93 Remotely . | . . . . . . . Salvage Created 921 | 93 168 . 201 233 . 226 Parts 50 | 11 13 . 6 12 . 8 Haulers Intercepted 2 | . . . 2 . . . Recyclers Shooed . | . . . . . . . Parts Field Recycled . | . . . . . . . Retrieved Matter . | . . . . . . . Parts Self-Destructed 16 | . . . . . . 16 Prevented . | . . . . . . . Kills | -11 -10 -10 -9 -9 -7 -6 ------- Run | Yrd Mat Min Mat Min Zio Pro Combat Hostiles Destroyed 27 | . 6 . 4 12 . 5 Melee 1 | . . . . . . 1 Guns 7 | . 3 . . . . 4 Cannons 12 | . . . 4 8 . . AOE 6 | . 3 . . 3 . . Classes Destroyed 10 | 1 2 . 3 2 . 2 Tunneler 5 | 4 . . . 1 . . Hauler 2 | . . . 2 . . . Recycler 2 | . 1 . . 1 . . Swarmer 10 | . 6 . . 3 . 1 Grunt 5 | . . . 1 4 . . Brawler 1 | . . . . . . 1 Duelist 2 | . . . . . . 2 Sentry 4 | . . . 3 . . 1 Demolisher 2 | . . . . 2 . . Assembled 3 | . . . . 3 . . Best Kill Streak 4 | 4 4 . 1 4 . 1 Combat Bots Only 3 | . 3 . 1 3 . 1 Max Kills in Single Turn 3 | 1 3 . 1 3 . 1 Gunslinging 1 | . 1 . . . . . Exploded 3 | . 3 . . 3 . . Melee 1 | . . . . . . 1 Uniques/NPCs Destroyed . | . . . . . . . Combat | -11 -10 -10 -9 -9 -7 -6 -------- Run | Yrd Mat Min Mat Min Zio Pro Hostile Shots Fired 234 | . 18 3 26 58 . 129 Missed 68 | . 3 2 3 14 . 46 Damage Taken 2840 | . 111 15 332 1090 . 1292 Core 426 | . 23 . 44 126 . 233 Absorbed by Shields . | . . . . . . . Redirected to Shielding 33 | . . . 33 . . . Regen/Repaired (Parts) 120 | . . . . . 120 . Core Remaining (%) 95 | 100 . 90 . . . . Volleys Fired 72 | 16 5 . 15 25 . 11 Largest 2 | 2 2 . 2 2 . 2 Hottest 112 | 60 60 . 112 112 . 81 Shots Fired 127 | 24 10 . 30 42 . 21 Gun 44 | 24 9 . . . . 11 Cannon 74 | . . . 30 34 . 10 Launcher 9 | . 1 . . 8 . . Special . | . . . . . . . Kinetic 89 | 16 5 . 19 29 . 20 Thermal 17 | . . . 11 5 . 1 Explosive 9 | . 1 . . 8 . . Electromagnetic 12 | 8 4 . . . . . Robot Hit Streak 14 | 13 2 . 14 13 . 4 Robot Miss Streak 12 | 1 2 . 2 12 . 3 Penetration Max . | . . . . . . . Secondary Targets 1 | . 1 . . . . . Max Gunslinging Chain 1 | . 1 . . . . . Shots Hit Robots 99 | 18 5 . 27 32 . 17 Core Hits 84 | 6 9 . 19 41 . 9 Critical Kills 1 | . . . . 1 . . Critical Parts Destroyed . | . . . . . . . Critical Strikes 1 | . . . . 1 . . Meltdown 1 | . . . . 1 . . Melee Attacks 7 | . . . . . . 7 Impact . | . . . . . . . Slashing 7 | . . . . . . 7 Piercing . | . . . . . . . Sneak Attacks . | . . . . . . . Combat Hostiles . | . . . . . . . Follow-up Attacks . | . . . . . . . Damage Inflicted 2375 | 185 234 . 585 861 . 510 Guns 429 | 185 59 . . . . 185 Cannons 1311 | . . . 579 571 . 161 Explosions 465 | . 175 . . 290 . . Melee 164 | . . . . . . 164 Ramming 6 | . . . 6 . . . Kinetic 1297 | 107 25 . 373 469 . 323 Thermal 378 | . 47 . 206 102 . 23 Explosive 418 | . 128 . . 290 . . Electromagnetic 112 | 78 34 . . . . . Impact . | . . . . . . . Slashing 164 | . . . . . . 164 Piercing . | . . . . . . . Highest Corruption . | . . . . . . . Average Corruption . | . . . . . . . Corruption Purged . | . . . . . . . Corruption Blocked . | . . . . . . . Overload Shots . | . . . . . . . Overflow Damage . | . . . . . . . Projectiles . | . . . . . . . Explosions . | . . . . . . . Melee . | . . . . . . . Knockbacks 31 | . . . 2 27 . 2 Impact . | . . . . . . . Kinetic 28 | . . . 2 25 . 1 Secondary 3 | . . . . 2 . 1 Self-Inflicted Damage . | . . . . . . . Shots . | . . . . . . . Rammed 2 | . . . 2 . . . Targets Rammed 2 | . . . 2 . . . Kicked . | . . . . . . . Crushed . | . . . . . . . Highest Temperature 255 | 40 20 . 153 255 . 141 Average Temperature 57 | 21 12 . 62 69 . 56 Received Heat Transfer 594 | . . 9 138 72 . 375 Siege Activations . | . . . . . . . Robots Corrupted . | . . . . . . . Combat Hostiles . | . . . . . . . Parts Fried . | . . . . . . . Impact Corruptions . | . . . . . . . Robots Melted 1 | . . . . 1 . . Combat Hostiles 1 | . . . . 1 . . Parts Melted . | . . . . . . . Heat Transferred 705 | . 100 . 370 185 . 50 Parts Sabotaged . | . . . . . . . Parts Stolen . | . . . . . . . Parts Stripped . | . . . . . . . Power Chain Reactions 1 | . 1 . . . . . Alert | -11 -10 -10 -9 -9 -7 -6 ------- Run | Yrd Mat Min Mat Min Zio Pro Peak Influence 224 | 20 183 70 144 224 . . Initial 70 | . 13 70 27 25 . . Average 64 | 7 86 70 53 90 . . Maximum Alert Level 1 | . . . . 1 . . Low Security (%) 98 | 100 100 100 100 93 . . Level 1 1 | . . . . 6 . . Level 2 . | . . . . . . . Level 3 . | . . . . . . . Level 4 . | . . . . . . . Level 5 . | . . . . . . . High Security . | . . . . . . . Max Security . | . . . . . . . Squads Dispatched 2 | . 1 . . . . 1 Investigation 1 | . 1 . . . . . Extermination . | . . . . . . . Reinforcement . | . . . . . . . Assault 1 | . . . . . . 1 Garrison . | . . . . . . . Intercept . | . . . . . . . Searches Triggered . | . . . . . . . Construction Impeded . | . . . . . . . Haulers Reinforced . | . . . . . . . Active Scanning Responses . | . . . . . . . Cargo Convoy Interrupts . | . . . . . . . Stealth | -11 -10 -10 -9 -9 -7 -6 --------- Run | Yrd Mat Min Mat Min Zio Pro Distress Signals 2 | . 1 . . . . 1 Communications Jammed . | . . . . . . . Distress Signals . | . . . . . . . Times Spotted 74 | . 8 2 14 16 . 34 Peak Tracking Total 11 | . 3 2 3 11 . 11 Tactical Retreats 11 | . . . . 2 . 9 Traps | -11 -10 -10 -9 -9 -7 -6 ------- Run | Yrd Mat Min Mat Min Zio Pro Traps Triggered . | . . . . . . . Indirectly . | . . . . . . . Trap Hack Attempts . | . . . . . . . Triggered . | . . . . . . . Disarmed . | . . . . . . . Reprogrammed . | . . . . . . . Reused . | . . . . . . . Traps Extracted . | . . . . . . . Installed . | . . . . . . . Triggered . | . . . . . . . Machines | -11 -10 -10 -9 -9 -7 -6 ---------- Run | Yrd Mat Min Mat Min Zio Pro Machines Disabled . | . . . . . . . Max in Single Turn . | . . . . . . . Machines Repaired . | . . . . . . . Machines Dismantled . | . . . . . . . Machines Sabotaged . | . . . . . . . Overloaded Fab Kills . | . . . . . . . Hacking | -11 -10 -10 -9 -9 -7 -6 --------- Run | Yrd Mat Min Mat Min Zio Pro Machines Accessed 5 | . 2 . 2 . 1 . Terminals 4 | . 2 . 2 . . . Fabricators . | . . . . . . . Repair Stations . | . . . . . . . Recycling Units . | . . . . . . . Scanalyzers . | . . . . . . . Garrison Access . | . . . . . . . Total Hacks 11 | . 3 . 4 . 4 . Successful 8 | . 2 . 2 . 4 . Failed 3 | . 1 . 2 . . . Catastrophic . | . . . . . . . Database Lockouts . | . . . . . . . Manual 7 | . 3 . 3 . 1 . Terminals 7 | . 3 . 4 . . . Fabricators . | . . . . . . . Repair Stations . | . . . . . . . Recycling Units . | . . . . . . . Scanalyzers . | . . . . . . . Garrison Access . | . . . . . . . Terminal Hacks 5 | . . . 1 . 4 . Part Schematic 4 | . . . . . 4 . Hauler Manifests 1 | . . . 1 . . . Fabricator Hacks . | . . . . . . . Repair Station Hacks . | . . . . . . . Recycling Unit Hacks . | . . . . . . . Scanalyzer . | . . . . . . . Garrison Access Hacks . | . . . . . . . Unauthorized Hacks 3 | . 2 . 1 . . . Terminals 3 | . 2 . 1 . . . Botnet 3 | . 2 . 1 . . . Fabricators . | . . . . . . . Repair Stations . | . . . . . . . Recycling Units . | . . . . . . . Scanalyzers . | . . . . . . . Garrison Access . | . . . . . . . Data Cores Recovered . | . . . . . . . Used . | . . . . . . . Hacking Detections 2 | . 1 . 1 . . . Full Trace Events . | . . . . . . . Feedback Events . | . . . . . . . Feedback Blocked . | . . . . . . . Robot Schematics Acquired 3 | . . . . . 3 . Robots Built . | . . . . . . . Authchips . | . . . . . . . Time . | . . . . . . . Total Robot Build Rating . | . . . . . . . Part Schematics Acquired 18 | . . . . . 18 . Parts Built . | . . . . . . . Authchips . | . . . . . . . Time . | . . . . . . . Total Part Build Rating . | . . . . . . . Parts Repaired . | . . . . . . . Time . | . . . . . . . Parts Recycled . | . . . . . . . Recycled Matter . | . . . . . . . Retrieved Matter . | . . . . . . . Retrieved Components . | . . . . . . . Parts Scanalyzed . | . . . . . . . Part Schematics Acquired . | . . . . . . . Parts Damaged . | . . . . . . . Bothacking | -11 -10 -10 -9 -9 -7 -6 ------------ Run | Yrd Mat Min Mat Min Zio Pro Used RIF Installer . | . . . . . . . Robots Hacked . | . . . . . . . Non-combat . | . . . . . . . Combat . | . . . . . . . Robot Hacks Applied . | . . . . . . . Relay Couplers Released . | . . . . . . . Fabnet Peak Effective % . | . . . . . . . Robots Rewired . | . . . . . . . Allies Hacked . | . . . . . . . Hacks Repelled . | . . . . . . . Allies | -11 -10 -10 -9 -9 -7 -6 -------- Run | Yrd Mat Min Mat Min Zio Pro Total Allies 3 | . . . . 1 2 . Largest Group 2 | . . . . 1 2 2 Highest-Rated Group 59 | . . . . 31 59 59 Highest-Rated Ally 31 | . . . . 31 31 31 Total Orders . | . . . . . . . Ally Attacks 19 | . . . . . . 19 Total Damage 268 | . . . . . . 268 Kills 4 | . . . . . . 4 Allies Corrupted . | . . . . . . . Allies Melted . | . . . . . . . Intel | -11 -10 -10 -9 -9 -7 -6 ------- Run | Yrd Mat Min Mat Min Zio Pro Robot Analysis Total . | . . . . . . . Derelict Logs Recovered 6 | . . 1 . 2 2 1 Drone Launches . | . . . . . . . Drone Recoveries . | . . . . . . . Exploration | -11 -10 -10 -9 -9 -7 -6 ------------- Run | Yrd Mat Min Mat Min Zio Pro Turns Passed 4352 | 157 359 216 1016 438 1762 404 Spaces Moved 2650 | 71 213 134 568 241 1160 263 Core 13 | 7 . . . . . 6 Treads 2507 | 64 213 134 568 241 1160 127 Legs . | . . . . . . . Wheels 129 | . . . . . . 129 Hover 1 | . . . . . . 1 Flight . | . . . . . . . Fastest Speed 50 | 50 160 160 145 145 150 105 Average Speed 148 | 149 160 160 145 148 150 131 Slowest Speed 300 | 160 160 160 160 150 150 300 Overloaded Moves . | . . . . . . . Propulsion Burnouts . | . . . . . . . Robots Hopped . | . . . . . . . Cave-ins Triggered . | . . . . . . . Exploration Rate (%) 39 | 4 44 30 27 57 84 32 Regions Visited 6 Branch Regions 4 Pre-discovered Areas 1 | . . . . 1 . . Known Exits Taken . | . . . . . . . Unknown Exits Taken 6 | 1 1 1 1 1 1 . Scrap Searched 5 | . . . . 1 4 . Spaces Dug . | . . . . . . . Terrain Destroyed 56 | . 9 . . 44 . 3 Melee . | . . . . . . . Projectile 3 | . . . . . . 3 AOE 53 | . 9 . . 44 . . Terrain Rammed . | . . . . . . . Walls Destroyed . | . . . . . . . Machines Disabled . | . . . . . . . Actions | -11 -10 -10 -9 -9 -7 -6 --------- Run | Yrd Mat Min Mat Min Zio Pro Total 2936 | 98 221 135 728 279 1186 289 Wait 116 | . 1 . 112 2 1 . Move 2644 | 70 212 133 567 240 1159 263 Hop . | . . . . . . . Pick Up 27 | 3 1 1 7 4 10 1 Fast Attach 15 | 8 . . 5 . 2 . Attach 15 | . . . 1 6 2 6 Detach 3 | 1 . . 1 . 1 . Swap 13 | . 2 1 8 1 1 . Drop 21 | . . . 10 1 9 1 Fire 72 | 16 5 . 15 25 . 11 Melee 7 | . . . . . . 7 Ram . | . . . . . . . Kick . | . . . . . . . Crush 2 | . . . 2 . . . Escape Stasis . | . . . . . . . Rewire 1 | . . . . . 1 . Trap . | . . . . . . . Miscellaneous . | . . . . . . . Route ------- -11/Scrapyard -10/Materials (discovered 2 exits: [*Min x2]) -10/Mines (discovered 3 exits: *Mat x2 / Sub) -9/Materials -9/Mines (discovered 2 exits: [*Mat] / *Zio) -7/Zion -6/Proximity Caves History --------- Turn | Location | Event 17 | -11/Scrapyard | Discovered new exit (range 16) 158 | -11/Scrapyard | Entered Materials 225 | -10/Materials | Discovered new exit (range 6) 311 | -10/Materials | Build established: Mutant 509 | -10/Materials | Discovered new exit (range 6) 517 | -10/Materials | Entered Mines 608 | -10/Mines | Identified exit to Subcaves 717 | -10/Mines | Discovered new exit (range 11) 726 | -10/Mines | Discovered new exit (range 15) 733 | -10/Mines | Entered Materials 733 | -9/Materials | Evolved 2 slots: Propulsion x1, Utility x1 1173 | -9/Materials | Discovered new exit (range 7) 1749 | -9/Materials | Entered Mines 1780 | -9/Mines | Received a Rocket Launcher from a helpful Derelict 1817 | -9/Mines | Assembled infested the area 1822 | -9/Mines | Assisted by a Guerilla fighting off Assembled 1840 | -9/Mines | Learned Materials stockpile data 1923 | -9/Mines | Lost 7 parts (1p2n1u3w) 2127 | -9/Mines | Discovered new exit (range 12) 2132 | -9/Mines | Received a Mining Laser from a helpful Derelict 2152 | -9/Mines | A Derelict revealed a hidden shortcut to a safe place 2187 | -9/Mines | Entered Zion 2187 | -7/Zion | Accompanied by 1 ally 2277 | -7/Zion | Learned location of 1 exit from Lower Caves 2731 | -7/Zion | Given the Hacking Drone Bay 2738 | -7/Zion | Found Prototype Device 2740 | -7/Zion | Identified Hacking Drone Bay 2931 | -7/Zion | Learned Factory garrison access intel 3135 | -7/Zion | Received a visual enhancement algorithm 3476 | -7/Zion | Met Imprinter 3612 | -7/Zion | Gained Derelict followers 3928 | -7/Zion | Discovered new exit (range 10) 3949 | -7/Zion | Entered Proximity Caves 3949 | -6/Proximity Caves | Accompanied by 2 allies 3952 | -6/Proximity Caves | Spotter reported a threat 3956 | -6/Proximity Caves | Attracted the attention of an 0b10 checkpoint 4043 | -6/Proximity Caves | Attracted the attention of an 0b10 outpost 4157 | -6/Proximity Caves | Learned Factory trap positions 4206 | -6/Proximity Caves | Core integrity fell below 50% 4345 | -6/Proximity Caves | Core integrity fell below 20% 4353 | -6/Proximity Caves | Destroyed by G-50 Soldier with Heavy Laser Last Messages --------------- 04262_ Hacking Drone Bay destroyed. 04286_ Lgt. Nuclear Core destroyed. 04303_ Slug Cannon destroyed. 04304_ Seismic Detector destroyed. 04305_ S-27 Virus destroyed. 04310_ Critical hit (Burn: +37). 04312_ VTOL Module fries itself beyond repair. 04317_ Arm. Wheel destroyed. 04320_ Slug penetrates B-48 Gladiator. 04322_ Adv. Treads destroyed. 04337_ L-41 Fighter destroyed. 04343_ Imp. Melee Analysis Suite fries itself beyond repair. 04343_ Axe fries itself beyond repair. 04343_ Gravmag System destroyed. 04345_ Core Shielding fries itself beyond repair. 04348_ Imp. Deuterium Engine fries itself beyond repair. 04348_ Gatling Laser destroyed. Map ----- +----------------------------------------------------+ | ?????????????????????????????????????????????????? | | ?????????????????????????????????????????????????? | | ?????????????????????????????????????????????????? | | ?????????????????????????????????????????????????? | | ?????????????????????????????????????????????????? | | ?????????????????????????????????????????????????? | | ?????????????????????????????????????????????????? | | ?????????????????????????????????????????????????? | | ?????????????????????????????????????????????????? | | ?????????????????????????????????????????????????? | | ????####?????????????????????????????????????????? | | ????? #?????????????????????????????????????????? | | ?????# #?????????????????????????????????????????? | | #????# ###???????????????????????????????????????? | | #????# ####????????????????????????????????????? | | # ##???????????????????????????????????? | | # #???????????????????????????????????? | | # "# #### ##?????????####?????????????????????? | | ?????# #??# #????????? #?????????????????????? | | ###### #### #?????????# #?????????????????????? | | ########### ##????????????????????? | | ## % ##???????????????????? | | ## #### #???????????????????? | | # ##?# ######### ### #??????????????????? | | #?####???????# ###g ##?????????????????? | | #???????????#g @%g #?????????????????? | | #???????????###### #????????????? | | ## ##?????????????????? #???????????? | | ### ####??????????????????? ?????????? | | ##?###??????????????????????? #### ????????????? | | ##????????????????????????????###????????????????? | | ?????????????????????????????????????????????????? | | ?????????????????????????????????????????????????? | | ?????????????????????????????????????????????????? | | ?????????????????????????????????????????????????? | | ?????????????????????????????????????????????????? | | ?????????????????????????????????????????????????? | | ?????????????????????????????????????????????????? | | ?????????????????????????????????????????????????? | | ?????????????????????????????????????????????????? | | ?????????????????????????????????????????????????? | | ?????????????????????????????????????????????????? | | ?????????????????????????????????????????????????? | | ?????????????????????????????????????????????????? | | ?????????????????????????????????????????????????? | | ?????????????????????????????????????????????????? | | ?????????????????????????????????????????????????? | | | | | | | +----------------------------------------------------+ Best States ------------- Heat Dissipation 28 Energy Generation 14 Energy Capacity 250 Matter Stores 300 Matter Capacity 300 Sight Range 16 Terrain Scan Range 16 Terrain Scan Density 10 ECM Strength 2 Weapon Shielding 66 Evasion (%) 40 Targeting Accuracy 5 Recoil Reduction 3 Item Schematics ----------------- Riot Gun | -7/Zion | Free Beamcaster | -7/Zion | Free Ripper | -7/Zion | Free Bore Cannon | -7/Zion | Free Adv. Assault Cannon | -7/Zion | Archive Coil Gun | -7/Zion | Archive Imp. Cooling System | -7/Zion | Archive Force Field | -7/Zion | Archive Imp. System Restoration Module | -7/Zion | Archive Remote Datajack | -7/Zion | Archive Med. Treads | -7/Zion | Archive Antigrav System | -7/Zion | Archive Adv. Signal Interpreter | -7/Zion | Archive Dynamic Insulation System | -7/Zion | Archive Hvy. Flak Cannon | -7/Zion | Archive Matter Filter | -7/Zion | Archive Energy Filter | -7/Zion | Archive Lance | -7/Zion | Archive Robot Schematics ------------------ S-27 Virus | -7/Zion | Archive L-41 Fighter | -7/Zion | Archive Y-45 Defender | -7/Zion | Archive Fabricated ------------ Nothing Alien Tech Used ----------------- None Achievements -------------- I Survived The Infestation It's Just You Challenges ------------ None Game ------ Seed SpikedTransportShovel Manual? 0 Play Time 00:50:23 Cumulative 14.6 hours Start 2024.08.17 @ 15:45:40 End 2024.08.17 @ 20:53:50 Sessions 3 Manual Loads 0 Difficulty Rogue Special Mode None Game No. 14 Rogue 14 Adventurer 0 Explorer 0 Win Type - Total 0 Types 0/0/0/0/0/0/0/0/0 Lore% 11 Gallery% 18 Achievement% 17 Wizard Run 0 Options --------- Layout 1 ASCII 0 Keyboard 1 Movement Numpad Keybinds 1 Fullscreen 1 Font 24/Smallcaps Map View 50x35 Zoom Use 0% Tactical HUD 1 Map Filters NONE Filters NONE Steam 1 RUN: fb8fab75-fb73-4a6e-b434-2baa31dabe52